[Event "Turkey IS Bank Super League 2017"]
[Site "Darica-Kocaeli"]
[Date "2017.07.30"]
[Round "6"]
[White "Ertan, Can"]
[Black "Selbes, Tarik"]
[Result "1-0"]
[ECO "C91"]
[WhiteElo "2377"]
[BlackElo "2260"]
[Annotator "NA"]
[PlyCount "95"]
[EventType "team-tourn"]
[EventCountry "TUR"]
[SourceTitle "playchess.com"]
[Source "ChessBase"]
[SourceQuality "1"]
[TimeControl "40/5400+30:1800+30"]

1. e4 {[%emt 0:00:30]} e5 {[%emt 0:01:00]} 2. Nf3 {[%emt 0:00:30]} Nc6 {[%emt 0:00:30]} 3. Bb5 {[%emt 0:00:00]} a6 {[%emt 0:02:30]} 4. Ba4 {[%emt 0:00:00]} Nf6 {[%emt 0:00:30]} 5. O-O {[%emt 0:00:00]} Be7 {[%emt 0:00:30]} 6. Re1 {[%emt 0:00:00]} b5 {[%emt 0:00:30]} 7. Bb3 {[%emt 0:00:30]} d6 {[%emt 0:00:00]} 8. c3 {[%emt 0:01:30]} O-O {[%emt 0:00:00]} 9. d4 {[%emt 0:00:30]} Bg4 {[%emt 0:00:30]} 10. Be3 {[%emt 0:00:30]} exd4 {[%emt 0:01:30]} 11. cxd4 {[%emt 0:00:00]} d5 {[%emt 0:00:00]} 12. e5 {[%emt 0:02:00]} Ne4 {[%emt 0:00:00]} 13. Nc3 {[%emt 0:03:30]} Nxc3 {[%emt 0:00:30]} 14. bxc3 {[%emt 0:00:30]} Qd7 {[%emt 0:00:30] C91: Closed Ruy Lopez: 7...d6 8 c3 0-0 9 d4} (14... Na5 15. Bc2 Nc4 16. Qd3 g6 17. Bh6 Re8 18. h3 Bf5 19. Qe2 Bxc2 20. Qxc2 Qd7 21. Nh2 a5 22. Ng4 Ra6 23. f4 {1-0 (55) Areshchenko,A (2714)-Melkumyan,H (2634) Germany 2013}) 15. Bc2 {[%emt 0:00:30]} (15. h3 $5 {[%cal Rh3g4]} Bf5 16. Bg5 $11) 15... Bf5 {[%emt 0:08:30]} 16. Bg5 {[%emt 0:02:30]} Bxc2 {[%emt 0:02:30]} 17. Qxc2 {[%emt 0:00:30]} Nd8 {[%emt 0:00:30]} 18. a4 {[%emt 0:08:30]} Ne6 {[%emt 0:01:30]} 19. Bxe7 {[%emt 0:00:30]} Qxe7 {[%emt 0:00:30]} 20. Qa2 {[%emt 0:00:30]} Qd8 {[%emt 0:00:30]} 21. Reb1 {[%emt 0:02:30]} c6 {[%emt 0:01:30]} 22. Rb3 $146 {[%emt 0:00:30]} Rc8 {[%emt 0:33:30]} 23. Qe2 {[%emt 0:34:30]} Qd7 {[%emt 0:03:30]} 24. axb5 {[%emt 0:01:30]} axb5 {[%emt 0:00:30]} 25. Rba3 {[%emt 0:00:00]} Nf4 {[%emt 0:00:30]} 26. Qe3 {[%emt 0:01:00]} Qg4 {[%emt 0:00:30]} 27. g3 {[%emt 0:15:30]} Ne6 {[%emt 0:00:30]} 28. Ra7 {[%emt 0:02:30]} h6 {[%emt 0:06:30]} 29. Kg2 {[%emt 0:01:30]} c5 {[%emt 0:00:30]} 30. Rb7 {[%emt 0:03:30] [#]} (30. dxc5 $11 Rxc5 31. Ra8) 30... b4 $1 {[%emt 0:01:30]} 31. h3 {[%emt 0:11:30]} Qe4 {[%emt 0:02:30]} 32. Qxe4 {[%emt 0:06:30]} dxe4 {[%emt 0:00:30]} 33. Ne1 {[%emt 0:00:30]} ({White has to play} 33. Nh4 $1 $15) 33... bxc3 {[%emt 0:02:30]} 34. d5 {[%emt 0:00:00]} Nd4 {[%emt 0:00:30]} 35. e6 {[%emt 0:01:00]} Rfd8 {[%emt 0:07:30]} 36. exf7+ {[%emt 0:08:30]} Kf8 {[%emt 0:00:30]} 37. Rc1 {[%emt 0:00:00]} Rxd5 {[%emt 0:00:30]} 38. Rxc3 {[%emt 0:00:00]} Rf5 {[%emt 0:00:30]} 39. Re3 {[%emt 0:01:30]} Rxf7 {[%emt 0:00:30]} 40. Rxf7+ {[%emt 0:00:30]} Kxf7 {[%emt 0:00:30]} 41. Rxe4 {[%emt 0:00:30]} Kf6 $11 {[%emt 0:06:30]} (41... Re8 $5 {[%cal Re8e4]} 42. Rf4+ Ke7 $11) 42. Nd3 {[%emt 0:04:30]} Ne6 {[%emt 0:00:30]} 43. Ne5 {[%emt 0:00:30]} Kf5 {[%emt 0:01:30]} 44. f3 {[%emt 0:00:30]} Ra8 {[%emt 0:01:30]} 45. Nd7 {[%emt 0:02:30]} Ra2+ {[%emt 0:01:30]} 46. Kf1 {[%emt 0:00:00]} Ng5 {[%emt 0:00:30]} 47. Rf4+ {[%emt 0:00:00]} Kg6 {[%emt 0:02:30]} 48. Nf8+ {[%emt 0:00:30]} 1-0

[Event "Turkey IS Bank Super League 2017"]
[Site "Darica-Kocaeli"]
[Date "2017.07.30"]
[Round "6"]
[White "Osmak, Iulija"]
[Black "Karavade, Eesha"]
[Result "1/2-1/2"]
[ECO "D02"]
[WhiteElo "2353"]
[BlackElo "2397"]
[Annotator "NA"]
[PlyCount "77"]
[EventType "team-tourn"]
[EventCountry "TUR"]
[SourceTitle "playchess.com"]
[Source "ChessBase"]
[SourceQuality "1"]
[TimeControl "40/5400+30:1800+30"]

1. d4 {[%emt 0:00:30]} d5 {[%emt 0:02:00]} 2. Bf4 {[%emt 0:00:30]} Nf6 {[%emt 0:00:30]} 3. e3 {[%emt 0:00:00]} e6 {[%emt 0:00:30]} 4. Nf3 {[%emt 0:00:00]} Bd6 {[%emt 0:00:30]} 5. Bg3 {[%emt 0:00:30]} O-O {[%emt 0:01:30]} 6. Nbd2 {[%emt 0:00:30]} c5 {[%emt 0:01:30]} 7. c3 {[%emt 0:00:30]} b6 {[%emt 0:00:30]} 8. Bd3 {[%emt 0:00:00]} Bb7 {[%emt 0:00:00]} 9. Ne5 {[%emt 0:01:00]} Nc6 {[%emt 0:01:00]} 10. f4 {[%emt 0:00:30] D02: 1 d4 d5 2 Nf3 sidelines, including 2...Nf6 3 g3 and 2...Nf6 3 Bf4} (10. O-O Qc7 11. f4 Ne7 12. Qb1 Qc8 13. Bh4 Nf5 14. Bxf5 exf5 15. Bxf6 gxf6 16. Nef3 Qe6 17. Re1 Ba6 18. Nh4 cxd4 19. exd4 {1-0 (28) Korobov,A (2692)-Dominguez Perez,L (2739) Doha 2016}) 10... Ne7 {[%emt 0:00:30]} 11. Qb1 {[%emt 0:07:30]} g6 {[%emt 0:01:30] LiveBook: 10 Games} 12. O-O {[%emt 0:02:30]} Nf5 {[%emt 0:01:30]} 13. Bf2 {[%emt 0:00:30]} Be7 {[%emt 0:00:30]} 14. Qe1 $146 {[%emt 0:09:30]} ({Predecessor:} 14. a4 Nd6 15. a5 Rc8 16. axb6 axb6 17. Rd1 Qc7 {½-½ (29) Neef,M (2443)-Krishna,C (2404) Marianske Lazne 2017}) 14... Nd6 {[%emt 0:03:30]} 15. Bh4 {[%emt 0:00:30]} Nfe4 {[%emt 0:04:30]} 16. Bxe7 {[%emt 0:00:30]} Qxe7 {[%emt 0:00:00]} 17. Qe2 {[%emt 0:04:30]} f6 {[%emt 0:00:00]} 18. Ng4 {[%emt 0:31:00]} Nxd2 {[%emt 0:37:30]} 19. Qxd2 {[%emt 0:00:30]} Kg7 {[%emt 0:00:30]} 20. Rae1 {[%emt 0:03:30]} Rad8 {[%emt 0:04:30]} 21. Nf2 {[%emt 0:02:30]} e5 {[%emt 0:05:30]} 22. fxe5 {[%emt 0:04:30]} fxe5 {[%emt 0:00:30]} 23. Ng4 {[%emt 0:00:30]} e4 {[%emt 0:03:30]} 24. Be2 {[%emt 0:00:30]} c4 {[%emt 0:01:30]} 25. Ne5 {[%emt 0:00:30]} Nf7 {[%emt 0:01:30]} 26. Nxf7 {[%emt 0:01:30]} Rxf7 {[%emt 0:00:30]} 27. Rxf7+ {[%emt 0:00:30]} Kxf7 {[%emt 0:00:30]} 28. Rf1+ {[%emt 0:02:30]} Kg7 {[%emt 0:00:30]} 29. Bd1 {[%emt 0:06:30]} Rf8 {[%emt 0:05:30]} 30. Rxf8 {[%emt 0:00:30]} Qxf8 {[%emt 0:00:00]} 31. Qe1 {[%emt 0:00:30]} Qd6 $11 {[%emt 0:00:00]} 32. Qh4 {[%emt 0:01:30]} Bc8 {[%emt 0:07:30]} 33. g3 {[%emt 0:00:30]} Qf6 {[%emt 0:02:30]} 34. Qf4 {[%emt 0:03:30]} Qxf4 {[%emt 0:00:30]} 35. gxf4 {[%emt 0:00:30]} Bd7 {[%emt 0:00:00]} 36. Kf2 {[%emt 0:00:30]} Kf6 {[%emt 0:00:00]} 37. h4 {[%emt 0:00:30]} h5 {[%emt 0:01:30]} 38. Kg3 {[%emt 0:00:30]} b5 {[%emt 0:02:30]} 39. a3 {[%emt 0:00:30]} 1/2-1/2

[Event "Turkey IS Bank Super League 2017"]
[Site "Darica-Kocaeli"]
[Date "2017.07.30"]
[Round "6"]
[White "Gokerkan, Cem Kaan"]
[Black "Uzumcu, Ahmet Utku"]
[Result "1/2-1/2"]
[ECO "B94"]
[WhiteElo "2321"]
[BlackElo "2223"]
[Annotator "ChessBase"]
[PlyCount "177"]
[EventType "team-tourn"]
[EventCountry "TUR"]
[SourceTitle "playchess.com"]
[Source "ChessBase"]
[SourceQuality "1"]
[TimeControl "40/5400+30:1800+30"]

1. e4 c5 2. Nf3 d6 3. d4 cxd4 4. Nxd4 Nf6 5. Nc3 a6 6. Bg5 Nbd7 7. Qe2 h6 8. Bxf6 Nxf6 9. O-O-O Qc7 10. h3 g6 11. g4 e5 12. Nb3 Be7 13. Kb1 O-O 14. Qd2 Kg7 15. f4 {[%emt 0:34:30] 0} b5 {[%emt 0:33:00] 0} 16. g5 {[%emt 0:07:30] 0} hxg5 {[%emt 0:02:30]} 17. fxg5 {[%emt 0:00:30]} Nh5 {[%emt 0:00:30]} 18. Nd5 {[%emt 0:02:30]} Qd8 {[%emt 0:01:30]} 19. Rg1 {[%emt 0:04:30]} Be6 {[%emt 0:07:30]} 20. Nxe7 {[%emt 0:06:30]} Qxe7 {[%emt 0:02:30]} 21. Qxd6 {[%emt 0:00:30]} Qxd6 {[%emt 0:01:30]} 22. Rxd6 {[%emt 0:00:00]} Rad8 {[%emt 0:00:30]} 23. Rxd8 {[%emt 0:00:00]} Rxd8 {[%emt 0:00:30]} 24. Kc1 {[%emt 0:03:30]} Bxb3 {[%emt 0:04:30]} 25. axb3 {[%emt 0:04:30]} Rd4 {[%emt 0:00:30]} 26. Bd3 {[%emt 0:05:30]} Nf4 {[%emt 0:00:00]} 27. Rg3 {[%emt 0:00:30]} Rxe4 {[%emt 0:04:00]} 28. Bxe4 {[%emt 0:00:30]} Ne2+ {[%emt 0:00:30]} 29. Kd2 {[%emt 0:00:00]} Nxg3 {[%emt 0:00:00]} 30. Bb7 {[%emt 0:00:00]} a5 {[%emt 0:00:00]} 31. c4 {[%emt 0:01:30]} bxc4 {[%emt 0:01:30]} 32. bxc4 {[%emt 0:00:30]} Kf8 {[%emt 0:01:30]} 33. c5 {[%emt 0:09:30]} Ke7 {[%emt 0:01:30]} 34. Kd3 {[%emt 0:05:03]} Nh5 {[%emt 0:20:30] 7} 35. Ke4 {[%emt 0:03:56]} Nf4 {[%emt 0:00:30] ]} 36. Kxe5 {[%emt 0:03:52]} Nd3+ {[%emt 0:02:30] 9} 37. Kd4 {[%emt 0:09:11]} Nxb2 {[%emt 0:01:50]} 38. h4 {[%emt 0:02:48]} a4 {[%emt 0:07:01]} 39. Bd5 {[%emt 0:00:07]} a3 {[%emt 0:00:33]} 40. c6 {[%emt 0:00:00] ]} Na4 {[%emt 0:00:36]} 41. c7 {[%emt 0:11:03]} Nb6 {[%emt 0:02:30]} 42. Kc5 {[%emt 0:03:02]} Nc8 {[%emt 0:02:30] 8} 43. Kc6 {[%emt 0:09:25]} Ke8 {[%emt 0:01:30] ]} 44. Ba2 {[%emt 0:02:22]} Ke7 {[%emt 0:01:30] 1} 45. Bc4 {[%emt 0:00:43]} Ke8 {[%emt 0:02:30] 2} 46. Bb3 {[%emt 0:03:41]} Ke7 {[%emt 0:00:30] 7} 47. Bc4 {[%emt 0:01:00]} Ke8 {[%emt 0:02:30] 7} 48. Kc5 {[%emt 0:03:13]} Ke7 {[%emt 0:01:30] 4} 49. Kb4 {[%emt 0:01:55]} Nd6 {[%emt 0:00:30] 9} 50. Kc5 {[%emt 0:00:35]} Nc8 {[%emt 0:00:30] 3} 51. Kc6 {[%emt 0:00:05]} Ke8 {[%emt 0:00:30] 9} 52. Ba2 {[%emt 0:00:01]} Ke7 {[%emt 0:01:30] 8} 53. Bb3 {[%emt 0:00:29]} Ke8 {[%emt 0:01:30] 9} 54. Kc5 {[%emt 0:00:43]} Ke7 {[%emt 0:00:30] 6} 55. Kb4 {[%emt 0:00:36]} Nd6 {[%emt 0:00:30] 1} 56. Kc5 {[%emt 0:00:14]} Nc8 {[%emt 0:00:00] 6} 57. Kc6 {[%emt 0:01:18]} Ke8 {[%emt 0:00:00] 8} 58. Ba2 {[%emt 0:00:44]} Ke7 {[%emt 0:00:30] 4} 59. Kc5 {[%emt 0:00:00]} Ke8 {[%emt 0:00:30] 6} 60. Kc6 {[%emt 0:01:20]} Ke7 {[%emt 0:00:30] 0} 61. Kd5 {[%emt 0:00:00]} Nd6 {[%emt 0:01:30] 9} 62. Kc5 {[%emt 0:00:06]} Nc8 {[%emt 0:00:30] 8} 63. Kb4 {[%emt 0:00:46]} Nd6 {[%emt 0:00:30] 2} 64. Kc5 {[%emt 0:00:48]} Nc8 {[%emt 0:00:00] 4} 65. Kc6 {[%emt 0:00:00]} Ke8 {[%emt 0:00:00] 0} 66. Bc4 {[%emt 0:00:04]} Ke7 {[%emt 0:00:30] 0} 67. Bb3 {[%emt 0:00:14]} Ke8 {[%emt 0:00:00] 6} 68. Bc4 {[%emt 0:01:26]} Ke7 {[%emt 0:00:00] 0} 69. Ba2 {[%emt 0:00:37]} Ke8 {[%emt 0:00:30] 3} 70. Bb3 {[%emt 0:00:30]} Ke7 {[%emt 0:00:30] 3} 71. Kc5 {[%emt 0:00:00]} Ke8 {[%emt 0:00:30] 1} 72. Kb4 {[%emt 0:00:00]} Nd6 {[%emt 0:00:00] 4} 73. Ba4+ {[%emt 0:00:00]} Ke7 {[%emt 0:02:00] 8} 74. Kxa3 {[%emt 0:00:01]} Nc8 {[%emt 0:01:30] 2} 75. Kb4 {[%emt 0:01:19]} Kd6 {[%emt 0:00:30] 4} 76. Bb3 {[%emt 0:00:17]} Kxc7 {[%emt 0:01:30] ]} 77. Bxf7 {[%emt 0:00:30]} Ne7 {[%emt 0:00:30] 6} 78. Kc5 {[%emt 0:00:37]} Kd7 {[%emt 0:01:30] 4} 79. Kd4 {[%emt 0:01:05]} Nf5+ {[%emt 0:00:30] 4} 80. Ke5 {[%emt 0:00:56]} Nxh4 {[%emt 0:00:30] 8} 81. Bd5 {[%emt 0:00:39]} Ke7 {[%emt 0:00:30] 9} 82. Be4 {[%emt 0:00:13]} Nf5 {[%emt 0:00:30] 6} 83. Bxf5 {[%emt 0:00:00]} gxf5 {[%emt 0:00:30] 3} 84. Kxf5 {[%emt 0:00:20]} Kf7 {[%emt 0:00:30] ]} 85. Kf4 {[%emt 0:00:30]} Kg7 {[%emt 0:00:30] 6} 86. Kf5 {[%emt 0:00:30]} Kf7 {[%emt 0:00:30] 3} 87. g6+ {[%emt 0:00:30]} Kg7 {[%emt 0:00:30] 6} 88. Kg5 {[%emt 0:00:30]} Kg8 {[%emt 0:00:30] 6} 89. Kh5 {[%emt 0:00:00] [%clk 0:06.09]} 1/2-1/2

[Event "Turkey IS Bank Super League 2017"]
[Site "Darica-Kocaeli"]
[Date "2017.07.30"]
[Round "6"]
[White "Agdelen, Huseyin Can"]
[Black "Gundogan, Cem"]
[Result "1-0"]
[ECO "C54"]
[WhiteElo "2309"]
[BlackElo "2062"]
[Annotator "NA"]
[PlyCount "71"]
[EventType "team-tourn"]
[EventCountry "TUR"]
[SourceTitle "playchess.com"]
[Source "ChessBase"]
[SourceQuality "1"]
[TimeControl "40/5400+30:1800+30"]

1. e4 {[%emt 0:00:30]} e5 {[%emt 0:01:00]} 2. Nf3 {[%emt 0:00:30]} Nc6 {[%emt 0:03:30]} 3. Bc4 {[%emt 0:00:00]} Bc5 {[%emt 0:02:30]} 4. c3 {[%emt 0:00:00]} Nf6 {[%emt 0:00:30]} 5. d3 {[%emt 0:00:30]} d6 {[%emt 0:00:30]} 6. O-O {[%emt 0:00:30]} a6 {[%emt 0:00:30]} 7. a4 {[%emt 0:00:30] C54: Giuoco Piano: 4 c3 Nf6, main lines with 5 d4 and 5 d3} Ba7 {[%emt 0:01:30]} 8. Na3 {[%emt 0:04:30]} (8. Re1 h6 9. Nbd2 O-O 10. Nf1 Re8 11. Qb3 Qe7 12. a5 Rb8 13. Be3 Be6 14. Bxe6 Qxe6 15. Qxe6 Rxe6 16. Bxa7 Nxa7 {½-½ (63) Carlsen,M (2832)-Mamedyarov,S (2800) Paris 2017}) 8... O-O {[%emt 0:05:30]} 9. Re1 {[%emt 0:08:30]} Ne7 {[%emt 0:09:30]} 10. Nc2 {[%emt 0:31:00]} Ng6 {[%emt 0:42:30] LiveBook: 3 Games} 11. d4 $146 {[%emt 0:04:30]} ({Predecessor:} 11. Be3 h6 12. Bxa7 Rxa7 13. d4 Ra8 14. h3 a5 {½-½ (36) Aravindh,C (2593)-Sardana,R (2379) New Delhi 2017}) 11... Nxe4 {[%emt 0:25:30]} 12. Rxe4 {[%emt 0:01:30]} d5 {[%emt 0:00:00]} 13. Re1 {[%emt 0:00:00]} dxc4 {[%emt 0:01:00]} 14. Nxe5 {[%emt 0:02:00]} Nxe5 {[%emt 0:01:30]} 15. Rxe5 {[%emt 0:00:00]} c5 {[%emt 0:02:30]} 16. d5 {[%emt 0:07:00]} Bb8 {[%emt 0:02:30]} 17. Re4 {[%emt 0:01:30]} Bf5 {[%emt 0:12:45]} 18. Rxc4 {[%emt 0:08:30]} Bxc2 {[%emt 0:02:31]} 19. Qxc2 {[%emt 0:00:30]} Qxd5 {[%emt 0:00:48]} 20. Qe2 {[%emt 0:00:00]} Bd6 {[%emt 0:03:30]} 21. Be3 {[%emt 0:04:00]} b5 {[%emt 0:00:52]} 22. Rh4 {[%emt 0:00:00]} Qe6 {[%emt 0:03:22]} 23. Qh5 {[%emt 0:05:00]} Qg6 {[%emt 0:02:24]} 24. Qf3 {[%emt 0:00:30]} Rab8 {[%emt 0:00:04]} 25. a5 $11 {[%emt 0:03:30]} Be7 {[%emt 0:00:42]} 26. Rg4 {[%emt 0:01:30]} Qc2 {[%emt 0:00:31]} 27. Bh6 {[%emt 0:01:30]} g6 {[%emt 0:00:12]} 28. Bxf8 {[%emt 0:02:30]} Qxb2 {[%emt 0:00:01]} 29. Rd1 {[%emt 0:00:00]} Rxf8 {[%emt 0:01:17]} 30. Qe3 {[%emt 0:05:00]} Bf6 {[%emt 0:00:15]} 31. Rg3 {[%emt 0:01:30]} Qa3 {[%emt 0:00:44]} 32. h3 {[%emt 0:01:30]} Qxa5 {[%emt 0:00:32]} 33. Qxc5 {[%emt 0:00:30]} Rd8 {[%emt 0:00:29]} 34. Re1 {[%emt 0:01:30]} Kg7 {[%emt 0:00:24]} 35. Rf3 {[%emt 0:00:30]} Rf8 {[%emt 0:00:36]} 36. Rxf6 {[%emt 0:00:00]} 1-0

[Event "Turkey IS Bank Super League 2017"]
[Site "Darica-Kocaeli"]
[Date "2017.07.30"]
[Round "6"]
[White "Ozates, Tuna"]
[Black "Kamer, Kayra"]
[Result "1/2-1/2"]
[ECO "B40"]
[WhiteElo "2291"]
[BlackElo "2062"]
[Annotator "NA"]
[PlyCount "63"]
[EventType "team-tourn"]
[EventCountry "TUR"]
[SourceTitle "playchess.com"]
[Source "ChessBase"]
[SourceQuality "1"]
[TimeControl "40/5400+30:1800+30"]

1. e4 {[%emt 0:00:30]} c5 {[%emt 0:01:00]} 2. Nf3 {[%emt 0:00:30]} e6 {[%emt 0:00:30]} 3. b3 {[%emt 0:00:00]} b6 {[%emt 0:00:30]} 4. Bb2 {[%emt 0:00:00]} Bb7 {[%emt 0:00:30]} 5. Qe2 {[%emt 0:00:30]} Nf6 {[%emt 0:00:30] B40: Sicilian: 2...e6, Unusual lines} 6. e5 {[%emt 0:00:30]} Nd5 {[%emt 0:00:30]} (6... Ng4 7. Nc3 Nc6 8. h3 Nh6 9. Ne4 Nf5 10. g3 d5 11. exd6 Bxd6 12. Bg2 O-O 13. O-O {1-0 (32) Shaposhnikov,E (2557)-Vitiugov,N (2721) Sochi 2016}) 7. g3 {[%emt 0:00:30]} Be7 {[%emt 0:05:30]} 8. Bg2 {[%emt 0:00:30]} O-O {[%emt 0:00:30]} 9. Na3 $146 {[%emt 0:02:30]} ({Predecessor:} 9. O-O d6 10. d4 cxd4 11. exd6 Qxd6 12. Nxd4 Nc6 13. Nxc6 Bxc6 {1-0 (39) Blatny,P (2535)-Brustkern,J (2289) Germany 2000}) 9... Nc6 {[%emt 0:02:30]} 10. O-O {[%emt 0:00:30]} d6 {[%emt 0:02:30]} 11. exd6 {[%emt 0:01:30]} Qxd6 {[%emt 0:00:30]} 12. Nc4 {[%emt 0:00:30]} Qc7 {[%emt 0:00:30]} 13. Rad1 {[%emt 0:03:30]} Bf6 {[%emt 0:01:30]} 14. Bxf6 {[%emt 0:18:30]} Nxf6 {[%emt 0:00:30]} 15. d4 {[%emt 0:01:30]} cxd4 {[%emt 0:01:30]} 16. Nxd4 {[%emt 0:00:30]} Nxd4 {[%emt 0:00:30]} 17. Rxd4 {[%emt 0:00:30]} Bxg2 {[%emt 0:00:30]} 18. Kxg2 {[%emt 0:00:30]} Rad8 {[%emt 0:00:30]} 19. Rfd1 {[%emt 0:00:30]} Rxd4 {[%emt 0:00:30]} 20. Rxd4 {[%emt 0:00:30]} Rd8 {[%emt 0:03:30]} 21. Qe5 {[%emt 0:03:30]} Qc6+ {[%emt 0:01:30]} 22. f3 {[%emt 0:00:30]} Rxd4 {[%emt 0:00:30]} 23. Qxd4 {[%emt 0:00:00]} Qd5 {[%emt 0:27:00]} 24. Qf4 {[%emt 0:52:00]} (24. Qe5 $5 {[%cal Re5b8]} Qd8 25. Qd6 Qxd6 26. Nxd6 $11) 24... Nd7 {[%emt 0:01:30]} 25. Qc7 {[%emt 0:04:30]} g5 {[%emt 0:02:30]} 26. Qd6 {[%emt 0:13:30]} Nf6 {[%emt 0:01:30]} 27. a4 {[%emt 0:04:30]} Qf5 {[%emt 0:02:30]} 28. Ne3 {[%emt 0:01:30]} Qg6 {[%emt 0:01:30]} 29. Qd4 $11 {[%emt 0:05:30]} Nd5 {[%emt 0:02:30]} 30. Nxd5 {[%emt 0:00:30]} exd5 {[%emt 0:00:30]} 31. Qd2 {[%emt 0:04:36]} h6 {[%emt 0:00:30]} 32. Qe2 {[%emt 0:01:50]} 1/2-1/2

[Event "Turkey IS Bank Super League 2017"]
[Site "Darica-Kocaeli"]
[Date "2017.07.30"]
[Round "6"]
[White "Buyukasik, Diyap"]
[Black "Sumer, Gun"]
[Result "1-0"]
[ECO "E05"]
[WhiteElo "2285"]
[BlackElo "1965"]
[Annotator "RC"]
[PlyCount "111"]
[EventType "team-tourn"]
[EventCountry "TUR"]
[SourceTitle "playchess.com"]
[Source "ChessBase"]
[SourceQuality "1"]
[TimeControl "40/5400+30:1800+30"]

1. Nf3 Nf6 2. g3 e6 3. Bg2 d5 4. O-O Be7 5. c4 O-O 6. d4 dxc4 7. Qc2 a6 8. a4 Bd7 9. Qxc4 Bc6 10. Bf4 Bd6 11. Bxd6 cxd6 12. Nc3 Nbd7 13. b4 Rc8 14. Qd3 Bxf3 15. Bxf3 d5 {[%emt 0:33:00]} 16. Rfc1 {[%emt 0:35:00]} Rc4 {[%emt 0:06:30]} 17. Na2 {[%emt 0:05:30]} Nb6 {[%emt 0:02:30]} 18. a5 {[%emt 0:05:30]} Rxc1+ {[%emt 0:00:00]} 19. Nxc1 {[%emt 0:00:30]} Nc4 {[%emt 0:00:00]} 20. Nb3 {[%emt 0:00:30]} b6 {[%emt 0:08:30]} 21. Nd2 {[%emt 0:04:30]} b5 {[%emt 0:04:30]} 22. Nb3 {[%emt 0:00:30]} Qd6 {[%emt 0:03:30]} 23. Nc5 {[%emt 0:01:30]} h5 {[%emt 0:01:30]} 24. Qc3 {[%emt 0:03:30]} g6 {[%emt 0:06:30]} 25. Rd1 {[%emt 0:02:30]} Rc8 {[%emt 0:06:30]} 26. Qc1 {[%emt 0:02:30]} Kg7 {[%emt 0:05:30]} 27. Qg5 {[%emt 0:01:30]} Nb2 {[%emt 0:04:30]} 28. Re1 {[%emt 0:07:30]} Nc4 {[%emt 0:00:30]} 29. h3 {[%emt 0:01:30]} Re8 {[%emt 0:02:41]} 30. Rd1 {[%emt 0:04:30]} Nb2 {[%emt 0:00:11]} 31. Rc1 {[%emt 0:04:30]} Nc4 {[%emt 0:00:02]} 32. Kg2 {[%emt 0:03:30]} e5 {[%emt 0:05:33]} 33. dxe5 {[%emt 0:04:19]} Rxe5 {[%emt 0:01:37]} 34. Qf4 {[%emt 0:00:06]} Ne4 {[%emt 0:05:49]} 35. Bxe4 {[%emt 0:06:34]} dxe4 {[%emt 0:03:24]} 36. Nxe4 {[%emt 0:04:45]} Qd5 {[%emt 0:00:01]} 37. f3 {[%emt 0:00:27]} Rf5 {[%emt 0:01:21]} 38. Qc7 {[%emt 0:01:00]} Qd4 {[%emt 0:00:34]} 39. g4 {[%emt 0:01:25]} hxg4 {[%emt 0:00:40]} 40. hxg4 {[%emt 0:00:00]} Rd5 {[%emt 0:02:07]} 41. Rh1 {[%emt 0:03:54]} Ne3+ {[%emt 0:11:30]} 42. Kg3 {[%emt 0:00:30]} Qe5+ {[%emt 0:01:30]} 43. Qxe5+ {[%emt 0:00:30]} Rxe5 {[%emt 0:00:30]} 44. Rc1 {[%emt 0:04:30]} Re6 {[%emt 0:01:30]} 45. Rc5 {[%emt 0:02:30]} Nc4 {[%emt 0:01:53]} 46. Rd5 {[%emt 0:01:30]} Ne3 {[%emt 0:01:51]} 47. Rc5 {[%emt 0:01:30]} Kf8 {[%emt 0:00:32]} 48. Rc8+ {[%emt 0:00:30]} Ke7 {[%emt 0:01:04]} 49. Nc5 {[%emt 0:00:30]} Rd6 {[%emt 0:00:02]} 50. Ra8 {[%emt 0:01:30]} Nc2 {[%emt 0:00:35]} 51. Nxa6 {[%emt 0:00:30]} g5 {[%emt 0:00:54]} 52. Nc7 {[%emt 0:01:30]} Nxb4 {[%emt 0:00:36]} 53. Nxb5 {[%emt 0:00:30]} Rd2 {[%emt 0:00:00]} 54. a6 {[%emt 0:00:30]} Rxe2 {[%emt 0:00:46]} 55. a7 {[%emt 0:00:30]} Ra2 {[%emt 0:00:12]} 56. Rc8 {[%emt 0:00:30]} 1-0

[Event "Turkey IS Bank Super League 2017"]
[Site "Darica-Kocaeli"]
[Date "2017.07.30"]
[Round "6"]
[White "Burcu, Cagatay"]
[Black "Tirak, Mert"]
[Result "1-0"]
[ECO "E62"]
[WhiteElo "2268"]
[BlackElo "1909"]
[Annotator "NA"]
[PlyCount "87"]
[EventType "team-tourn"]
[EventCountry "TUR"]
[SourceTitle "playchess.com"]
[Source "ChessBase"]
[SourceQuality "1"]
[TimeControl "40/5400+30:1800+30"]

1. d4 {[%emt 0:01:30]} Nf6 {[%emt 0:01:00]} 2. Nf3 {[%emt 0:00:00]} g6 {[%emt 0:00:30]} 3. c4 {[%emt 0:00:00]} Bg7 {[%emt 0:00:30]} 4. g3 {[%emt 0:00:30]} O-O {[%emt 0:00:00]} 5. Bg2 {[%emt 0:00:00]} d6 {[%emt 0:01:00]} 6. O-O {[%emt 0:00:00]} Nc6 {[%emt 0:01:30]} 7. Nc3 {[%emt 0:00:00]} e5 {[%emt 0:00:30]} 8. dxe5 {[%emt 0:02:00]} dxe5 {[%emt 0:00:30]} 9. Bg5 {[%emt 0:02:30]} Be6 {[%emt 0:00:00]} 10. Nd5 {[%emt 0:07:30]} Bxd5 {[%emt 0:06:00] E62: King's Indian: Fianchetto: 6...c6 and Panno Variation (6...Nc6) without ...a6} 11. Bxf6 {[%emt 0:00:30]} Bxf6 {[%emt 0:00:30] LiveBook: 6 Games} 12. cxd5 {[%emt 0:00:30]} Nd4 {[%emt 0:00:00]} (12... Ne7 13. e4 Qd7 14. Qb3 c6 15. dxc6 Nxc6 {½-½ (15) Berkes,F (2648)-Naiditsch,A (2689) Hungary 2016}) 13. Nd2 {[%emt 0:01:30]} Bg7 {[%emt 0:12:00]} 14. Rc1 $146 {[%emt 0:38:00]} ({Find the theoretical novelty and annotate with similar games:} 14. e3 Nb5 15. Rc1 Nd6 16. f4 f5 17. Qc2 e4 18. Rfd1 {1-0 (80) Cerveny,M (2395)-Havlik,J (2374) Prague 2016}) 14... Rc8 {[%emt 0:35:30]} 15. a4 {[%emt 0:00:30]} c5 {[%emt 0:05:30]} 16. e3 {[%emt 0:18:30]} Nf5 {[%emt 0:00:30]} 17. Bh3 {[%emt 0:00:00]} Rc7 {[%emt 0:01:30]} 18. Ne4 {[%emt 0:08:00]} b6 {[%emt 0:12:30]} (18... Nd6 $14 19. Nxc5 Re8) 19. d6 {[%emt 0:01:30]} Rd7 {[%emt 0:00:00]} 20. Qf3 {[%emt 0:00:30]} Re8 {[%emt 0:07:00]} 21. Bxf5 {[%emt 0:00:30]} gxf5 {[%emt 0:00:00]} 22. Qxf5 {[%emt 0:00:30]} Re6 {[%emt 0:00:00]} 23. Rfd1 {[%emt 0:02:30]} h6 {[%emt 0:11:30]} 24. Rd2 {[%emt 0:00:30]} Bf8 {[%emt 0:07:30]} 25. Rcd1 {[%emt 0:08:30]} Bg7 $18 {[%emt 0:08:00]} 26. h4 {[%emt 0:00:30]} Kf8 {[%emt 0:03:57]} 27. Kh2 {[%emt 0:02:30]} Kg8 {[%emt 0:00:33]} 28. Kh3 {[%emt 0:00:00]} Bf6 {[%emt 0:06:10]} 29. Rc1 {[%emt 0:03:42]} Bg7 {[%emt 0:00:57]} 30. g4 {[%emt 0:03:16]} Bf6 {[%emt 0:02:07]} 31. g5 {[%emt 0:02:35]} hxg5 {[%emt 0:00:36]} 32. Rg1 {[%emt 0:00:10]} Rdxd6 {[%emt 0:00:46]} 33. Nxd6 {[%emt 0:01:37]} Rxd6 {[%emt 0:00:04]} 34. Rxd6 {[%emt 0:00:51]} Qxd6 {[%emt 0:00:30]} 35. hxg5 {[%emt 0:00:00]} Bg7 {[%emt 0:00:06]} 36. g6 {[%emt 0:01:27]} fxg6 {[%emt 0:00:34]} 37. Rxg6 {[%emt 0:00:06]} Qe7 {[%emt 0:00:32]} 38. Rc6 {[%emt 0:00:21]} Bf8 {[%emt 0:01:47]} 39. Qg4+ {[%emt 0:01:22]} Kh8 {[%emt 0:00:38]} 40. Qh5+ {[%emt 0:00:00]} Kg8 {[%emt 0:00:43]} 41. Qg6+ {[%emt 0:03:33]} Kh8 {[%emt 0:00:30]} 42. Rf6 {[%emt 0:01:30]} Qd7+ {[%emt 0:01:30]} 43. Kg3 {[%emt 0:00:30]} e4 {[%emt 0:01:30]} 44. Rxf8# {[%emt 0:00:30]} 1-0